[Event "Titled Tuesday Blitz July 11 Late 2023"]
[White "Vujacic, Igor"]
[Black "Troff, Kayden"]
[WhiteFideId "932620"]
[BlackFideId "2047896"]
[WhiteElo "2263"]
[BlackElo "2797"]
[Result "0-1"]
[Round "9"]
[TimeControl "180+2"]
[Date "2023.07.11"]
[WhiteClock "0:00:00"]
[BlackClock "0:00:02"]
[Board "26"]

1. d4 {[%clk 0:03:00]}  Nf6 {[%clk 0:02:59]} 2. Bf4 {[%clk 0:03:00]}  g6 {[%clk 0:02:59]} 3. Nc3 {[%clk 0:03:00]}  d5 {[%clk 0:02:58]} 4. e3 {[%clk 0:03:00]}  Bg7 {[%clk 0:02:58]} 5. Nb5 {[%clk 0:02:56]}  Na6 {[%clk 0:02:57]} 6. h3 {[%clk 0:02:56]}  O-O {[%clk 0:02:52]} 7. Nf3 {[%clk 0:02:56]}  c5 {[%clk 0:02:50]} 8. c3 {[%clk 0:02:52]}  Bd7 {[%clk 0:02:43]} 9. a4 {[%clk 0:02:45]}  c4 {[%clk 0:02:31]} 10. Na3 {[%clk 0:02:12]}  Qb6 {[%clk 0:02:19]} 11. Qc2 {[%clk 0:02:03]}  Qa5 {[%clk 0:01:52]} 12. Be2 {[%clk 0:01:30]}  Nh5 {[%clk 0:00:55]} 13. Bh2 {[%clk 0:01:26]}  b6 {[%clk 0:00:39]} 14. Ne5 {[%clk 0:01:19]}  Bxa4 {[%clk 0:00:35]} 15. Qc1 {[%clk 0:00:46]}  b5 {[%clk 0:00:34]} 16. Nc6 {[%clk 0:00:29]}  Qb6 {[%clk 0:00:34]} 17. Nxe7+ {[%clk 0:00:29]}  Kh8 {[%clk 0:00:34]} 18. Nxd5 {[%clk 0:00:29]}  Qe6 {[%clk 0:00:31]} 19. Bf3 {[%clk 0:00:16]}  Rad8 {[%clk 0:00:30]} 20. Nc7 {[%clk 0:00:09]}  Nxc7 {[%clk 0:00:28]} 21. Bxc7 {[%clk 0:00:10]}  Rd7 {[%clk 0:00:22]} 22. Bh2 {[%clk 0:00:11]}  b4 {[%clk 0:00:19]} 23. Nb1 {[%clk 0:00:06]}  Bb3 {[%clk 0:00:12]} 24. Nd2 {[%clk 0:00:07]}  bxc3 {[%clk 0:00:12]} 25. bxc3 {[%clk 0:00:06]}  f5 {[%clk 0:00:11]} 26. O-O {[%clk 0:00:06]}  Rdf7 {[%clk 0:00:10]} 27. Bxh5 {[%clk 0:00:06]}  gxh5 {[%clk 0:00:10]} 28. Ra3 {[%clk 0:00:05]}  Bh6 {[%clk 0:00:10]} 29. Nxb3 {[%clk 0:00:04]}  cxb3 {[%clk 0:00:10]} 30. Qb2 {[%clk 0:00:05]}  Rb7 {[%clk 0:00:10]} 31. Rb1 {[%clk 0:00:04]}  f4 {[%clk 0:00:09]} 32. Rxb3 {[%clk 0:00:03]}  fxe3 {[%clk 0:00:06]} 33. Be5+ {[%clk 0:00:02]}  Kg8 {[%clk 0:00:02]} 34. Rxb7 {[%clk 0:00:03]}  exf2+ {[%clk 0:00:02]} 35. Kf1 {[%clk 0:00:02]}  Qc4+ {[%clk 0:00:02]} 36. Qe2 {[%clk 0:00:03]}  Qa4 {[%clk 0:00:01]} 37. R7b4 {[%clk 0:00:02]}  Qa3 {[%clk 0:00:01]} 38. Qc4+ {[%clk 0:00:01]}  Rf7 {[%clk 0:00:01]} 39. Rb8+ {[%clk 0:00:00]}  Bf8 {[%clk 0:00:02]} 0-1


[Site "https://www.chess.com"]

[Event "Titled Tuesday Blitz July 11 Late 2023"]
[White "Fantastic_Power"]
[Black "Zavgorodniy, Sergiy"]
[BlackFideId "14110148"]
[WhiteElo "2732"]
[BlackElo "2596"]
[Result "1-0"]
[Round "9"]
[TimeControl "180+2"]
[Date "2023.07.11"]
[WhiteClock "0:00:31"]
[BlackClock "0:00:13"]
[Board "30"]

1. e4 {[%clk 0:03:00]}  c6 {[%clk 0:02:58]} 2. d4 {[%clk 0:03:00]}  d5 {[%clk 0:02:56]} 3. e5 {[%clk 0:03:01]}  Bf5 {[%clk 0:02:52]} 4. h4 {[%clk 0:03:01]}  h5 {[%clk 0:02:46]} 5. c4 {[%clk 0:03:01]}  e6 {[%clk 0:02:39]} 6. Nc3 {[%clk 0:03:01]}  dxc4 {[%clk 0:02:37]} 7. Bxc4 {[%clk 0:03:01]}  Nd7 {[%clk 0:02:38]} 8. Nge2 {[%clk 0:03:01]}  Nb6 {[%clk 0:02:38]} 9. Bb3 {[%clk 0:03:00]}  Ne7 {[%clk 0:02:38]} 10. Ng3 {[%clk 0:02:56]}  Bg6 {[%clk 0:02:38]} 11. Bg5 {[%clk 0:02:54]}  Qd7 {[%clk 0:02:38]} 12. O-O {[%clk 0:02:51]}  Nf5 {[%clk 0:02:38]} 13. Nxf5 {[%clk 0:02:43]}  Bxf5 {[%clk 0:02:39]} 14. Bc2 {[%clk 0:02:16]}  Bxc2 {[%clk 0:02:37]} 15. Qxc2 {[%clk 0:02:17]}  Be7 {[%clk 0:02:31]} 16. Ne4 {[%clk 0:02:13]}  O-O {[%clk 0:02:30]} 17. Bf6 {[%clk 0:01:36]}  Nd5 {[%clk 0:02:02]} 18. Ng5 {[%clk 0:01:19]}  g6 {[%clk 0:02:01]} 19. Bxe7 {[%clk 0:01:20]}  Qxe7 {[%clk 0:02:00]} 20. Rad1 {[%clk 0:01:17]}  Kg7 {[%clk 0:01:59]} 21. Qe4 {[%clk 0:01:13]}  Rad8 {[%clk 0:01:56]} 22. Rd3 {[%clk 0:01:13]}  Rd7 {[%clk 0:01:49]} 23. Rf3 {[%clk 0:01:06]}  Qb4 {[%clk 0:01:35]} 24. g4 {[%clk 0:01:00]}  hxg4 {[%clk 0:01:34]} 25. Qxg4 {[%clk 0:01:00]}  Rh8 {[%clk 0:01:19]} 26. Kg2 {[%clk 0:00:57]}  Rh5 {[%clk 0:01:16]} 27. b3 {[%clk 0:00:53]}  c5 {[%clk 0:01:02]} 28. Rc1 {[%clk 0:00:50]}  Qb6 {[%clk 0:00:40]} 29. Rxc5 {[%clk 0:00:46]}  Re7 {[%clk 0:00:34]} 30. Ne4 {[%clk 0:00:37]}  Re8 {[%clk 0:00:25]} 31. Nf6 {[%clk 0:00:30]}  Nxf6 {[%clk 0:00:13]} 32. exf6+ {[%clk 0:00:31]} 1-0


[Site "https://www.chess.com"]

[Event "Titled Tuesday Blitz July 11 Late 2023"]
[White "Haydon, David L"]
[Black "Fiorito, Francisco"]
[WhiteFideId "415405"]
[BlackFideId "180165"]
[WhiteElo "2713"]
[BlackElo "2589"]
[Result "0-1"]
[Round "9"]
[TimeControl "180+2"]
[Date "2023.07.11"]
[WhiteClock "0:00:10"]
[BlackClock "0:00:27"]
[Board "32"]

1. d4 {[%clk 0:02:53]}  Nf6 {[%clk 0:02:59]} 2. Nf3 {[%clk 0:02:53]}  b6 {[%clk 0:02:59]} 3. g3 {[%clk 0:02:53]}  Bb7 {[%clk 0:02:58]} 4. Bg2 {[%clk 0:02:53]}  g6 {[%clk 0:02:59]} 5. O-O {[%clk 0:02:53]}  Bg7 {[%clk 0:02:59]} 6. c4 {[%clk 0:02:53]}  O-O {[%clk 0:02:59]} 7. Nc3 {[%clk 0:02:53]}  Ne4 {[%clk 0:02:59]} 8. Bf4 {[%clk 0:02:50]}  Nxc3 {[%clk 0:02:58]} 9. bxc3 {[%clk 0:02:50]}  d6 {[%clk 0:02:59]} 10. Qd2 {[%clk 0:02:47]}  Nd7 {[%clk 0:02:58]} 11. Bh6 {[%clk 0:02:47]}  e6 {[%clk 0:02:52]} 12. Rfe1 {[%clk 0:02:46]}  Nf6 {[%clk 0:02:52]} 13. Bxg7 {[%clk 0:02:45]}  Kxg7 {[%clk 0:02:53]} 14. Qf4 {[%clk 0:02:43]}  Be4 {[%clk 0:02:53]} 15. Rad1 {[%clk 0:02:41]}  Re8 {[%clk 0:02:50]} 16. c5 {[%clk 0:02:40]}  Qe7 {[%clk 0:02:48]} 17. g4 {[%clk 0:02:38]}  e5 {[%clk 0:02:43]} 18. cxd6 {[%clk 0:02:23]}  cxd6 {[%clk 0:02:42]} 19. Qg3 {[%clk 0:02:19]}  h6 {[%clk 0:02:36]} 20. h4 {[%clk 0:02:18]}  Rac8 {[%clk 0:02:20]} 21. Nd2 {[%clk 0:02:12]}  Bxg2 {[%clk 0:02:20]} 22. Kxg2 {[%clk 0:02:11]}  Qe6 {[%clk 0:01:43]} 23. dxe5 {[%clk 0:02:04]}  dxe5 {[%clk 0:01:42]} 24. g5 {[%clk 0:02:03]}  hxg5 {[%clk 0:01:40]} 25. hxg5 {[%clk 0:02:00]}  Nh5 {[%clk 0:01:41]} 26. Qf3 {[%clk 0:01:57]}  Nf4+ {[%clk 0:01:40]} 27. Kg1 {[%clk 0:01:49]}  Rh8 {[%clk 0:01:36]} 28. e3 {[%clk 0:01:46]}  Rh3 {[%clk 0:01:31]} 29. Qe4 {[%clk 0:01:41]}  Qg4+ {[%clk 0:01:30]} 30. Kf1 {[%clk 0:01:37]}  Rch8 {[%clk 0:01:26]} 31. Qxe5+ {[%clk 0:01:36]}  Kg8 {[%clk 0:01:16]} 32. Qe8+ {[%clk 0:01:35]}  Kg7 {[%clk 0:01:16]} 33. Qe5+ {[%clk 0:01:34]}  Kh7 {[%clk 0:01:17]} 34. Qe4 {[%clk 0:01:25]}  Re8 {[%clk 0:00:42]} 35. Qb7 {[%clk 0:01:24]}  Re7 {[%clk 0:00:38]} 36. Qc6 {[%clk 0:01:21]}  Qd7 {[%clk 0:00:28]} 37. Qb7 {[%clk 0:01:04]}  Qxb7 {[%clk 0:00:28]} 38. exf4 {[%clk 0:00:10]}  Rh1# {[%clk 0:00:27]} 0-1


[Site "https://www.chess.com"]

[Event "Titled Tuesday Blitz July 11 Late 2023"]
[White "Rastbod, Ali"]
[Black "Przybylski, Wojciech"]
[WhiteFideId "12567477"]
[BlackFideId "1117599"]
[WhiteElo "2688"]
[BlackElo "2578"]
[Result "1-0"]
[Round "9"]
[TimeControl "180+2"]
[Date "2023.07.11"]
[WhiteClock "0:00:32"]
[BlackClock "0:00:44"]
[Board "33"]

1. Nf3 {[%clk 0:03:00]}  Nf6 {[%clk 0:02:59]} 2. b3 {[%clk 0:02:58]}  b6 {[%clk 0:02:59]} 3. g3 {[%clk 0:02:57]}  Bb7 {[%clk 0:02:59]} 4. Bg2 {[%clk 0:02:57]}  c5 {[%clk 0:02:57]} 5. O-O {[%clk 0:02:54]}  e6 {[%clk 0:02:57]} 6. Bb2 {[%clk 0:02:55]}  Be7 {[%clk 0:02:57]} 7. e3 {[%clk 0:02:54]}  O-O {[%clk 0:02:57]} 8. Qe2 {[%clk 0:02:55]}  a5 {[%clk 0:02:55]} 9. c4 {[%clk 0:02:49]}  a4 {[%clk 0:02:55]} 10. Nc3 {[%clk 0:02:49]}  a3 {[%clk 0:02:54]} 11. Bc1 {[%clk 0:02:49]}  Nc6 {[%clk 0:02:49]} 12. Nb5 {[%clk 0:02:50]}  Nb4 {[%clk 0:02:49]} 13. d3 {[%clk 0:02:45]}  d5 {[%clk 0:02:47]} 14. Rd1 {[%clk 0:02:36]}  Bc6 {[%clk 0:02:40]} 15. Nxa3 {[%clk 0:02:34]}  Qb8 {[%clk 0:02:35]} 16. Bb2 {[%clk 0:02:20]}  Rd8 {[%clk 0:02:30]} 17. Ne5 {[%clk 0:01:51]}  Be8 {[%clk 0:02:30]} 18. f4 {[%clk 0:01:35]}  h6 {[%clk 0:02:28]} 19. Bf3 {[%clk 0:01:32]}  Nh7 {[%clk 0:02:24]} 20. Bg2 {[%clk 0:01:29]}  f6 {[%clk 0:02:20]} 21. Nf3 {[%clk 0:01:27]}  Bh5 {[%clk 0:02:20]} 22. h3 {[%clk 0:01:25]}  Bd6 {[%clk 0:02:12]} 23. g4 {[%clk 0:01:21]}  Bf7 {[%clk 0:02:10]} 24. Nb5 {[%clk 0:01:20]}  Rxa2 {[%clk 0:01:48]} 25. Rxa2 {[%clk 0:01:20]}  Nxa2 {[%clk 0:01:48]} 26. Bxf6 {[%clk 0:01:21]}  Nxf6 {[%clk 0:01:47]} 27. Qxa2 {[%clk 0:01:17]}  d4 {[%clk 0:01:47]} 28. Nxd6 {[%clk 0:01:13]}  Qxd6 {[%clk 0:01:46]} 29. exd4 {[%clk 0:01:13]}  Qxf4 {[%clk 0:01:42]} 30. dxc5 {[%clk 0:01:08]}  bxc5 {[%clk 0:01:37]} 31. Qf2 {[%clk 0:01:08]}  Ne4 {[%clk 0:01:31]} 32. Qe1 {[%clk 0:01:00]}  h5 {[%clk 0:01:20]} 33. dxe4 {[%clk 0:00:56]}  Rxd1 {[%clk 0:01:18]} 34. Qxd1 {[%clk 0:00:57]}  Qe3+ {[%clk 0:01:18]} 35. Kh1 {[%clk 0:00:54]}  hxg4 {[%clk 0:01:17]} 36. hxg4 {[%clk 0:00:49]}  Qh6+ {[%clk 0:01:16]} 37. Kg1 {[%clk 0:00:48]}  Qe3+ {[%clk 0:01:16]} 38. Kf1 {[%clk 0:00:48]}  Kh7 {[%clk 0:01:12]} 39. Qe2 {[%clk 0:00:30]}  Qxb3 {[%clk 0:01:11]} 40. Ng5+ {[%clk 0:00:29]}  Kg6 {[%clk 0:01:08]} 41. Nxf7 {[%clk 0:00:30]}  Kxf7 {[%clk 0:01:08]} 42. Qf3+ {[%clk 0:00:27]}  Qxf3+ {[%clk 0:01:07]} 43. Bxf3 {[%clk 0:00:28]}  Kf6 {[%clk 0:01:08]} 44. Kf2 {[%clk 0:00:28]}  Ke5 {[%clk 0:00:59]} 45. Ke3 {[%clk 0:00:28]}  g5 {[%clk 0:00:58]} 46. Bd1 {[%clk 0:00:27]}  Kd6 {[%clk 0:00:58]} 47. Ba4 {[%clk 0:00:23]}  e5 {[%clk 0:00:39]} 48. Kd3 {[%clk 0:00:19]}  Kc7 {[%clk 0:00:40]} 49. Kc3 {[%clk 0:00:19]}  Kb6 {[%clk 0:00:41]} 50. Kb3 {[%clk 0:00:19]}  Ka5 {[%clk 0:00:42]} 51. Bd7 {[%clk 0:00:20]}  Kb6 {[%clk 0:00:42]} 52. Ka4 {[%clk 0:00:20]}  Ka6 {[%clk 0:00:42]} 53. Be6 {[%clk 0:00:19]}  Kb6 {[%clk 0:00:41]} 54. Bc8 {[%clk 0:00:20]}  Kc7 {[%clk 0:00:41]} 55. Kb5 {[%clk 0:00:21]}  Kxc8 {[%clk 0:00:39]} 56. Kxc5 {[%clk 0:00:21]}  Kc7 {[%clk 0:00:38]} 57. Kd5 {[%clk 0:00:22]}  Kb6 {[%clk 0:00:38]} 58. Kxe5 {[%clk 0:00:23]}  Kc5 {[%clk 0:00:38]} 59. Kf5 {[%clk 0:00:24]}  Kxc4 {[%clk 0:00:39]} 60. Kxg5 {[%clk 0:00:25]}  Kd4 {[%clk 0:00:40]} 61. Kf5 {[%clk 0:00:26]}  Kc5 {[%clk 0:00:39]} 62. g5 {[%clk 0:00:27]}  Kd6 {[%clk 0:00:40]} 63. g6 {[%clk 0:00:28]}  Ke7 {[%clk 0:00:41]} 64. e5 {[%clk 0:00:28]}  Kf8 {[%clk 0:00:42]} 65. Kf6 {[%clk 0:00:29]}  Kg8 {[%clk 0:00:42]} 66. e6 {[%clk 0:00:30]}  Kf8 {[%clk 0:00:43]} 67. g7+ {[%clk 0:00:30]}  Kg8 {[%clk 0:00:43]} 68. e7 {[%clk 0:00:31]}  Kh7 {[%clk 0:00:44]} 69. e8=Q {[%clk 0:00:32]}  Kh6 {[%clk 0:00:44]} 70. Qh8# {[%clk 0:00:32]} 1-0


[Site "https://www.chess.com"]

[Event "Titled Tuesday Blitz July 11 Late 2023"]
[White "Shuvalova, Polina"]
[Black "Boldoo, Erdenepurev"]
[WhiteFideId "24171760"]
[BlackFideId "4901037"]
[WhiteElo "2671"]
[BlackElo "2570"]
[Result "0-1"]
[Round "9"]
[TimeControl "180+2"]
[Date "2023.07.11"]
[WhiteClock "0:00:00"]
[BlackClock "0:00:11"]
[Board "34"]

1. e4 {[%clk 0:03:00]}  e6 {[%clk 0:02:36]} 2. d4 {[%clk 0:03:00]}  d5 {[%clk 0:02:35]} 3. exd5 {[%clk 0:03:01]}  exd5 {[%clk 0:02:33]} 4. Nf3 {[%clk 0:03:01]}  Nc6 {[%clk 0:02:33]} 5. Bd3 {[%clk 0:03:01]}  Bd6 {[%clk 0:02:31]} 6. O-O {[%clk 0:03:01]}  Nge7 {[%clk 0:02:31]} 7. Re1 {[%clk 0:03:01]}  Bg4 {[%clk 0:02:26]} 8. c3 {[%clk 0:03:00]}  Qd7 {[%clk 0:02:18]} 9. Nbd2 {[%clk 0:02:59]}  f6 {[%clk 0:02:16]} 10. b4 {[%clk 0:02:59]}  O-O {[%clk 0:02:16]} 11. b5 {[%clk 0:02:58]}  Na5 {[%clk 0:02:15]} 12. c4 {[%clk 0:02:58]}  dxc4 {[%clk 0:02:06]} 13. Nxc4 {[%clk 0:02:58]}  Nxc4 {[%clk 0:02:05]} 14. Bxc4+ {[%clk 0:02:59]}  Kh8 {[%clk 0:02:06]} 15. Qb3 {[%clk 0:02:59]}  Rae8 {[%clk 0:01:50]} 16. h3 {[%clk 0:02:50]}  Bf5 {[%clk 0:01:26]} 17. Nh4 {[%clk 0:02:36]}  Ng6 {[%clk 0:01:26]} 18. Nxg6+ {[%clk 0:02:27]}  hxg6 {[%clk 0:01:14]} 19. Bd2 {[%clk 0:02:25]}  Rxe1+ {[%clk 0:01:11]} 20. Rxe1 {[%clk 0:02:25]}  Re8 {[%clk 0:01:12]} 21. Re3 {[%clk 0:02:20]}  Rxe3 {[%clk 0:01:09]} 22. Qxe3 {[%clk 0:02:18]}  Qe7 {[%clk 0:01:07]} 23. Bd5 {[%clk 0:02:07]}  b6 {[%clk 0:00:55]} 24. Qf3 {[%clk 0:01:50]}  Be6 {[%clk 0:00:47]} 25. Bxe6 {[%clk 0:01:34]}  Qxe6 {[%clk 0:00:47]} 26. d5 {[%clk 0:01:12]}  Qe5 {[%clk 0:00:44]} 27. g3 {[%clk 0:01:12]}  Qa1+ {[%clk 0:00:40]} 28. Kg2 {[%clk 0:01:12]}  Qxa2 {[%clk 0:00:41]} 29. Be3 {[%clk 0:01:09]}  Kh7 {[%clk 0:00:39]} 30. Qe4 {[%clk 0:01:09]}  a5 {[%clk 0:00:31]} 31. bxa6 {[%clk 0:01:07]}  Qxa6 {[%clk 0:00:31]} 32. h4 {[%clk 0:01:07]}  Qc8 {[%clk 0:00:29]} 33. g4 {[%clk 0:00:36]}  f5 {[%clk 0:00:29]} 34. gxf5 {[%clk 0:00:27]}  Qxf5 {[%clk 0:00:29]} 35. Qc4 {[%clk 0:00:25]}  Qd7 {[%clk 0:00:24]} 36. Qe4 {[%clk 0:00:25]}  b5 {[%clk 0:00:20]} 37. Bd2 {[%clk 0:00:23]}  Qf5 {[%clk 0:00:18]} 38. Qd4 {[%clk 0:00:17]}  Qe5 {[%clk 0:00:18]} 39. Qd3 {[%clk 0:00:03]}  b4 {[%clk 0:00:18]} 40. Kf1 {[%clk 0:00:02]}  Qa1+ {[%clk 0:00:12]} 41. Kg2 {[%clk 0:00:02]}  Qe5 {[%clk 0:00:13]} 42. Kf1 {[%clk 0:00:03]}  Qf5 {[%clk 0:00:13]} 43. Qd4 {[%clk 0:00:03]}  b3 {[%clk 0:00:12]} 44. Qc3 {[%clk 0:00:03]}  Qb1+ {[%clk 0:00:11]} 45. Ke2 {[%clk 0:00:00]}  b2 {[%clk 0:00:11]} 0-1


[Site "https://www.chess.com"]

[Event "Titled Tuesday Blitz July 11 Late 2023"]
[White "Francisco Guecamburu, Candela Be"]
[Black "Mikhailov, Viacheslav"]
[WhiteFideId "160911"]
[BlackFideId "4187369"]
[WhiteElo "2563"]
[BlackElo "2658"]
[Result "1-0"]
[Round "9"]
[TimeControl "180+2"]
[Date "2023.07.11"]
[WhiteClock "0:00:04"]
[BlackClock "0:00:00"]
[Board "35"]

1. e4 {[%clk 0:02:57]}  c5 {[%clk 0:02:59]} 2. Nf3 {[%clk 0:02:57]}  Nc6 {[%clk 0:02:59]} 3. Bb5 {[%clk 0:02:57]}  g6 {[%clk 0:02:58]} 4. Bxc6 {[%clk 0:02:57]}  dxc6 {[%clk 0:02:59]} 5. d3 {[%clk 0:02:53]}  Bg7 {[%clk 0:02:59]} 6. h3 {[%clk 0:02:54]}  Nf6 {[%clk 0:02:59]} 7. Nc3 {[%clk 0:02:52]}  O-O {[%clk 0:02:58]} 8. Bf4 {[%clk 0:02:46]}  c4 {[%clk 0:02:51]} 9. dxc4 {[%clk 0:02:38]}  Qa5 {[%clk 0:02:51]} 10. O-O {[%clk 0:02:36]}  Be6 {[%clk 0:02:50]} 11. Qe2 {[%clk 0:01:55]}  Qb4 {[%clk 0:02:50]} 12. a3 {[%clk 0:01:49]}  Qxc4 {[%clk 0:02:34]} 13. Rfe1 {[%clk 0:01:42]}  Rfd8 {[%clk 0:02:24]} 14. Qxc4 {[%clk 0:01:36]}  Bxc4 {[%clk 0:02:25]} 15. Rad1 {[%clk 0:01:35]}  Nd7 {[%clk 0:02:00]} 16. Bc7 {[%clk 0:01:28]}  Kf8 {[%clk 0:01:43]} 17. Bxd8 {[%clk 0:01:21]}  Rxd8 {[%clk 0:01:44]} 18. Nd4 {[%clk 0:01:15]}  Ke8 {[%clk 0:01:35]} 19. f4 {[%clk 0:01:09]}  e5 {[%clk 0:01:28]} 20. Nf3 {[%clk 0:00:50]}  exf4 {[%clk 0:01:26]} 21. e5 {[%clk 0:00:50]}  h6 {[%clk 0:01:16]} 22. b3 {[%clk 0:00:49]}  Be6 {[%clk 0:01:16]} 23. Ne4 {[%clk 0:00:46]}  Ke7 {[%clk 0:01:16]} 24. Nf2 {[%clk 0:00:30]}  g5 {[%clk 0:00:58]} 25. Nd3 {[%clk 0:00:29]}  Bf5 {[%clk 0:00:54]} 26. Nd4 {[%clk 0:00:26]}  Bg6 {[%clk 0:00:46]} 27. Nf3 {[%clk 0:00:19]}  Nf8 {[%clk 0:00:38]} 28. Nc5 {[%clk 0:00:12]}  Rb8 {[%clk 0:00:18]} 29. Rd2 {[%clk 0:00:10]}  b6 {[%clk 0:00:16]} 30. Ne4 {[%clk 0:00:09]}  Ne6 {[%clk 0:00:14]} 31. Nd6 {[%clk 0:00:07]}  Rd8 {[%clk 0:00:12]} 32. Red1 {[%clk 0:00:06]}  f6 {[%clk 0:00:10]} 33. Nd4 {[%clk 0:00:05]}  fxe5 {[%clk 0:00:07]} 34. Nxc6+ {[%clk 0:00:05]}  Kf6 {[%clk 0:00:07]} 35. Nxd8 {[%clk 0:00:05]}  Nxd8 {[%clk 0:00:08]} 36. Ne8+ {[%clk 0:00:04]}  Bxe8 {[%clk 0:00:08]} 37. Rxd8 {[%clk 0:00:05]}  Bf7 {[%clk 0:00:06]} 38. R8d6+ {[%clk 0:00:04]}  Be6 {[%clk 0:00:06]} 39. Rc6 {[%clk 0:00:04]}  Bf8 {[%clk 0:00:02]} 40. b4 {[%clk 0:00:04]}  Be7 {[%clk 0:00:00]} 41. Rc7 {[%clk 0:00:04]} 1-0


[Site "https://www.chess.com"]

[Event "Titled Tuesday Blitz July 11 Late 2023"]
[White "Omelja, Artem"]
[Black "Domingo Nunez, Ruben"]
[WhiteFideId "14119846"]
[BlackFideId "22245570"]
[WhiteElo "2655"]
[BlackElo "2561"]
[Result "1-0"]
[Round "9"]
[TimeControl "180+2"]
[Date "2023.07.11"]
[WhiteClock "0:00:06"]
[BlackClock "0:00:03"]
[Board "36"]

1. d4 {[%clk 0:02:55]}  g6 {[%clk 0:02:59]} 2. c4 {[%clk 0:02:54]}  Bg7 {[%clk 0:02:59]} 3. Nc3 {[%clk 0:02:47]}  d6 {[%clk 0:03:00]} 4. e4 {[%clk 0:02:21]}  Nd7 {[%clk 0:03:00]} 5. Nge2 {[%clk 0:02:19]}  e5 {[%clk 0:03:00]} 6. Be3 {[%clk 0:02:18]}  Ngf6 {[%clk 0:03:01]} 7. f3 {[%clk 0:02:17]}  O-O {[%clk 0:03:01]} 8. Qd2 {[%clk 0:02:17]}  exd4 {[%clk 0:03:01]} 9. Nxd4 {[%clk 0:02:18]}  Ne5 {[%clk 0:03:01]} 10. Be2 {[%clk 0:02:18]}  Re8 {[%clk 0:03:01]} 11. O-O {[%clk 0:02:16]}  Nc6 {[%clk 0:03:00]} 12. Rfd1 {[%clk 0:01:59]}  Bd7 {[%clk 0:02:58]} 13. Rac1 {[%clk 0:01:49]}  a6 {[%clk 0:02:53]} 14. b3 {[%clk 0:01:47]}  Qb8 {[%clk 0:02:51]} 15. Bf1 {[%clk 0:01:44]}  Nxd4 {[%clk 0:02:48]} 16. Bxd4 {[%clk 0:01:44]}  b5 {[%clk 0:02:48]} 17. cxb5 {[%clk 0:01:42]}  axb5 {[%clk 0:02:49]} 18. Bxf6 {[%clk 0:01:36]}  Bxf6 {[%clk 0:02:47]} 19. Nd5 {[%clk 0:01:36]}  Bd8 {[%clk 0:02:48]} 20. Rc2 {[%clk 0:01:30]}  c6 {[%clk 0:01:26]} 21. Nb4 {[%clk 0:01:25]}  c5 {[%clk 0:01:18]} 22. Qxd6 {[%clk 0:01:15]}  Bc7 {[%clk 0:01:16]} 23. Qxd7 {[%clk 0:01:09]}  Bxh2+ {[%clk 0:01:17]} 24. Kh1 {[%clk 0:01:07]}  cxb4 {[%clk 0:01:18]} 25. Bxb5 {[%clk 0:00:56]}  Re5 {[%clk 0:01:07]} 26. Rd5 {[%clk 0:00:46]}  Qf8 {[%clk 0:00:49]} 27. Kxh2 {[%clk 0:00:25]}  Qh6+ {[%clk 0:00:46]} 28. Kg1 {[%clk 0:00:20]}  Qe3+ {[%clk 0:00:45]} 29. Kf1 {[%clk 0:00:19]}  Rxd5 {[%clk 0:00:36]} 30. Qxd5 {[%clk 0:00:20]}  Rf8 {[%clk 0:00:34]} 31. Qd2 {[%clk 0:00:19]}  Qb6 {[%clk 0:00:33]} 32. Bc4 {[%clk 0:00:19]}  Rd8 {[%clk 0:00:33]} 33. Qe2 {[%clk 0:00:13]}  Qd4 {[%clk 0:00:30]} 34. Rc1 {[%clk 0:00:11]}  h5 {[%clk 0:00:24]} 35. Qf2 {[%clk 0:00:09]}  Qe5 {[%clk 0:00:23]} 36. Kg1 {[%clk 0:00:09]}  Kg7 {[%clk 0:00:23]} 37. Qe3 {[%clk 0:00:07]}  h4 {[%clk 0:00:17]} 38. f4 {[%clk 0:00:05]}  Qb2 {[%clk 0:00:17]} 39. Rf1 {[%clk 0:00:05]}  Rd2 {[%clk 0:00:16]} 40. Rf2 {[%clk 0:00:05]}  Qb1+ {[%clk 0:00:07]} 41. Bf1 {[%clk 0:00:06]}  Rd1 {[%clk 0:00:05]} 42. e5 {[%clk 0:00:04]}  Qf5 {[%clk 0:00:06]} 43. Qe2 {[%clk 0:00:03]}  Ra1 {[%clk 0:00:06]} 44. Qb2 {[%clk 0:00:03]}  Rb1 {[%clk 0:00:05]} 45. Qd4 {[%clk 0:00:03]}  Kh7 {[%clk 0:00:06]} 46. Qxb4 {[%clk 0:00:02]}  h3 {[%clk 0:00:06]} 47. Qc4 {[%clk 0:00:01]}  Qh5 {[%clk 0:00:05]} 48. Qe2 {[%clk 0:00:01]}  h2+ {[%clk 0:00:05]} 49. Kh1 {[%clk 0:00:02]}  Qh4 {[%clk 0:00:05]} 50. Qf3 {[%clk 0:00:01]}  Kg7 {[%clk 0:00:05]} 51. g3 {[%clk 0:00:01]}  Qh8 {[%clk 0:00:05]} 52. Qg2 {[%clk 0:00:02]}  Qd8 {[%clk 0:00:02]} 53. Qxh2 {[%clk 0:00:02]}  Qd4 {[%clk 0:00:02]} 54. Qg2 {[%clk 0:00:03]}  Qc3 {[%clk 0:00:02]} 55. Kg1 {[%clk 0:00:04]}  Rc1 {[%clk 0:00:02]} 56. Qf3 {[%clk 0:00:04]}  Qa1 {[%clk 0:00:03]} 57. f5 {[%clk 0:00:05]}  Qxe5 {[%clk 0:00:02]} 58. fxg6 {[%clk 0:00:05]}  fxg6 {[%clk 0:00:03]} 59. Qf7+ {[%clk 0:00:05]}  Kh6 {[%clk 0:00:04]} 60. Qf4+ {[%clk 0:00:05]}  Qxf4 {[%clk 0:00:03]} 61. Rxf4 {[%clk 0:00:06]} 1-0


[Site "https://www.chess.com"]

[Event "Titled Tuesday Blitz July 11 Late 2023"]
[White "Yelisieiev, Yevhenii"]
[Black "benny_aizenberg"]
[WhiteFideId "14139642"]
[WhiteElo "2550"]
[BlackElo "2651"]
[Result "0-1"]
[Round "9"]
[TimeControl "180+2"]
[Date "2023.07.11"]
[WhiteClock "0:00:52"]
[BlackClock "0:00:07"]
[Board "37"]

1. d4 {[%clk 0:02:59]}  f5 {[%clk 0:02:59]} 2. Nf3 {[%clk 0:02:55]}  Nf6 {[%clk 0:02:58]} 3. g3 {[%clk 0:02:56]}  g6 {[%clk 0:02:57]} 4. Bg2 {[%clk 0:02:56]}  Bg7 {[%clk 0:02:58]} 5. O-O {[%clk 0:02:57]}  O-O {[%clk 0:02:58]} 6. b3 {[%clk 0:02:57]}  d6 {[%clk 0:02:55]} 7. Bb2 {[%clk 0:02:57]}  a5 {[%clk 0:02:56]} 8. c4 {[%clk 0:02:48]}  c6 {[%clk 0:02:53]} 9. Nc3 {[%clk 0:02:47]}  Qe8 {[%clk 0:02:51]} 10. d5 {[%clk 0:02:46]}  Na6 {[%clk 0:02:49]} 11. Nd4 {[%clk 0:02:38]}  e5 {[%clk 0:02:39]} 12. dxe6 {[%clk 0:02:15]}  Bxe6 {[%clk 0:02:39]} 13. Nxe6 {[%clk 0:02:14]}  Qxe6 {[%clk 0:02:40]} 14. Na4 {[%clk 0:02:05]}  Rfe8 {[%clk 0:02:35]} 15. Re1 {[%clk 0:02:05]}  Rad8 {[%clk 0:02:34]} 16. Qd2 {[%clk 0:02:04]}  d5 {[%clk 0:01:42]} 17. cxd5 {[%clk 0:01:57]}  Nxd5 {[%clk 0:01:42]} 18. Bxg7 {[%clk 0:01:57]}  Kxg7 {[%clk 0:01:42]} 19. Qxa5 {[%clk 0:01:56]}  Qf6 {[%clk 0:01:42]} 20. Rad1 {[%clk 0:01:24]}  Nab4 {[%clk 0:01:41]} 21. Nb6 {[%clk 0:01:11]}  Nc2 {[%clk 0:00:57]} 22. Qxd5 {[%clk 0:01:10]}  cxd5 {[%clk 0:00:21]} 23. Nxd5 {[%clk 0:01:02]}  Rxd5 {[%clk 0:00:10]} 24. Bxd5 {[%clk 0:01:01]}  Nxe1 {[%clk 0:00:10]} 25. Rxe1 {[%clk 0:01:01]}  Qc3 {[%clk 0:00:09]} 26. Kf1 {[%clk 0:00:59]}  Re7 {[%clk 0:00:08]} 27. e3 {[%clk 0:00:52]}  Qd3+ {[%clk 0:00:07]} 0-1


[Site "https://www.chess.com"]